bitfinex/quotes_SOLUSD_20250908
["timestamp","ask_amount","ask_price","bid_price","bid_amount"]
[1757341384082,72.97,213.81,213.77,0.66]
[1757341384288,72.97,213.81,213.78,0.66]
[1757341384677,72.97,213.81,213.79,0.66]
[1757341384998,72.97,213.81,213.8,0.66]
[1757341384999,4.67704971,213.81,213.8,0.66]
[1757341386195,16.369674,213.81,213.77,0.66]
[1757341386384,16.369674,213.81,213.78,0.66]
[1757341386584,16.369674,213.81,213.79,0.66]
[1757341386980,27.06799334,213.84,213.8,0.66]
[1757341387185,16.36778033,213.84,213.81,0.66]
[1757341387583,27.06799334,213.84,213.79,0.66]
[1757341387792,10.70021301,213.82,213.78,26.0]
[1757341387972,10.70021301,213.81,213.76,0.32]
[1757341388175,10.70021301,213.81,213.76,0.98]
[1757341388474,13.59559401,213.82,213.76,0.32]
[1757341388671,4.54886741,213.82,213.77,0.66]
[1757341388871,18.14446142,213.83,213.77,0.66]
[1757341389071,4.54886741,213.81,213.77,0.66]
[1757341389281,4.54886741,213.79,213.74,0.66]
[1757341389480,4.54886741,213.79,213.75,37.38]
[1757341390092,0.67,213.8,213.75,38.04]
[1757341390093,4.54886741,213.8,213.75,38.04]
[1757341390610,5.21886741,213.8,213.75,37.38]
[1757341390905,16.36890841,213.82,213.76,0.66]
[1757341391310,4.54886741,213.8,213.75,37.38]
[1757341391691,4.54886741,213.79,213.75,37.38]
[1757341391891,13.59559401,213.81,213.75,38.04]
[1757341392084,4.54886741,213.8,213.75,37.38]
[1757341392401,10.69769786,213.79,213.75,37.38]
[1757341392809,10.69769786,213.79,213.75,38.04]
[1757341393007,16.37197118,213.78,213.75,38.04]
[1757341394008,16.37197118,213.78,213.75,37.38]
[1757341394796,17.04197118,213.78,213.75,37.38]
[1757341394988,27.06966904,213.78,213.75,37.38]
[1757341395189,16.37197118,213.78,213.75,37.38]
[1757341396616,22.39196299,213.78,213.75,37.38]
[1757341397310,87.23559401,213.77,213.72,0.1]
[1757341397513,10.69769786,213.76,213.72,37.42]
[1757341397724,84.33769786,213.76,213.72,37.42]
[1757341397892,73.64,213.76,213.72,37.42]
[1757341398198,11.36769786,213.75,213.72,37.42]
[1757341398397,97.93329187,213.74,213.72,37.42]
[1757341398601,15.37649821,213.73,213.72,37.42]
[1757341399393,29.64209222,213.73,213.72,0.1]
[1757341399711,28.97209222,213.73,213.72,0.1]
[1757341400293,29.64209222,213.73,213.72,0.1]
[1757341400509,13.59559401,213.72,213.63,34.33]
[1757341400710,10.69769786,213.7,213.64,37.34]
[1757341400909,10.69769786,213.7,213.64,38.0]
[1757341401111,27.07503163,213.71,213.65,0.66]
[1757341402014,16.37733377,213.71,213.67,26.0]
[1757341402309,16.37733377,213.71,213.67,26.66]
[1757341402490,16.37733377,213.71,213.67,26.0]
[1757341402696,11.69809555,213.71,213.68,0.66]
[1757341402903,11.69809555,213.71,213.67,26.0]
[1757341403109,11.69809555,213.71,213.68,0.66]
[1757341403417,4.67901927,213.72,213.68,0.66]
[1757341403710,4.67901927,213.72,213.67,26.0]
[1757341403912,10.69769786,213.69,213.64,63.34]
[1757341404308,0.67,213.68,213.64,37.34]
[1757341404797,4.68011419,213.67,213.64,37.34]
[1757341405800,16.38011431,213.68,213.64,37.34]
[1757341406120,17.05011431,213.68,213.64,37.34]
[1757341406708,16.38011431,213.68,213.64,38.0]
[1757341406909,4.67989517,213.68,213.65,0.66]
[1757341407303,4.67989517,213.68,213.64,37.34]
[1757341407510,18.27526593,213.7,213.65,0.66]
[1757341407703,4.67967192,213.7,213.65,0.66]
[1757341407904,16.04671713,213.72,213.64,37.34]
[1757341408204,10.69769786,213.71,213.64,38.0]
[1757341408398,10.69769786,213.69,213.64,37.34]
[1757341408604,16.37681278,213.72,213.64,37.34]
[1757341408605,84.23769786,213.68,213.64,37.34]
[1757341408817,10.69769786,213.67,213.63,33.67]
[1757341409011,10.69769786,213.67,213.65,37.28]
[1757341409211,11.36769786,213.66,213.65,37.28]
[1757341410126,16.04803109,213.66,213.65,37.28]
[1757341411524,77.55012651,213.67,213.65,37.94]
[1757341411700,77.55012651,213.67,213.65,37.28]
[1757341412225,72.87,213.67,213.66,0.66]
[1757341412417,4.67997076,213.68,213.66,0.66]
[1757341413021,4.67997076,213.68,213.65,37.28]
[1757341413208,12.36625463,213.75,213.66,5.34026606]
[1757341413409,4.67858145,213.74,213.69,26.0]
[1757341413709,4.67858145,213.74,213.7,37.92]
[1757341413914,4.67858145,213.74,213.71,0.66]
[1757341414120,4.67858145,213.74,213.7,37.26]
[1757341414313,0.67,213.77,213.7,37.26]
[1757341414512,3.46124785,213.76,213.7,37.92]
[1757341414715,5.34794862,213.77,213.7,37.92]
[1757341414914,4.67794862,213.77,213.71,0.66]
[1757341415228,5.34746068,213.8,213.73,26.0]
[1757341415451,3.46406426,213.79,213.74,37.26]
[1757341415931,0.7,213.78,213.74,37.26]
[1757341416324,17.07063186,213.8,213.74,37.26]
[1757341416527,3.46648578,213.79,213.74,37.26]
[1757341416714,4.16648578,213.79,213.74,37.26]
[1757341416915,0.7,213.79,213.74,37.26]
[1757341417314,4.67770605,213.78,213.74,37.26]
[1757341417722,4.67770605,213.78,213.75,0.68]
[1757341418028,4.67770605,213.78,213.74,37.26]
[1757341418325,13.59559401,213.83,213.75,0.68]
[1757341418530,18.27220627,213.83,213.77,26.0]
[1757341418741,0.06,213.84,213.78,37.22]
[1757341418913,0.06,213.84,213.81,26.0]
[1757341419116,0.06,213.84,213.82,63.24]
[1757341419636,0.06,213.84,213.83,37.24]
[1757341421320,0.06,213.84,213.83,37.22]
[1757341424240,0.06,213.84,213.83,37.9]
[1757341424444,0.06,213.84,213.83,0.68]
[1757341424748,0.06,213.84,213.83,37.18]
[1757341425443,0.06,213.84,213.83,37.86]
[1757341425738,0.06,213.84,213.83,37.18]
[1757341426115,0.06,213.84,213.83,37.86]
[1757341428056,0.06,213.84,213.79,0.68]
[1757341428353,0.06,213.84,213.8,63.84]
[1757341429749,0.06,213.84,213.8,63.16]
[1757341430136,0.06,213.84,213.81,0.68]
[1757341430552,0.06,213.84,213.8,67.83722779]
[1757341430751,0.06,213.84,213.82,0.68]
[1757341430943,0.06,213.84,213.83,37.12]
[1757341431343,0.06,213.84,213.83,37.8]
[1757341432962,0.06,213.84,213.83,42.47661226]
[1757341434156,0.06,213.84,213.83,5.35661226]
[1757341434366,0.06,213.84,213.83,42.47661226]
[1757341434562,0.06,213.84,213.83,63.8]
[1757341435742,0.06,213.84,213.83,26.68]
[1757341435937,0.06,213.84,213.83,68.47661226]
[1757341440654,0.06,213.84,213.79,1.8699016]
[1757341440853,0.06,213.84,213.81,0.68]
[1757341441168,0.06,213.84,213.77,2.55007644]
[1757341441460,0.76,213.84,213.81,26.0]
[1757341441672,0.06,213.84,213.82,37.1]
[1757341442051,0.06,213.84,213.78,0.68]
[1757341442239,0.06,213.84,213.82,26.0]
[1757341442446,0.06,213.84,213.83,37.1]
[1757341444268,5.43639356,213.84,213.83,37.1]
[1757341445492,0.06,213.84,213.83,37.1]
[1757341446671,0.06,213.84,213.83,37.82]
[1757341446974,0.06,213.84,213.83,42.49661226]
[1757341448664,0.06,213.87,213.86,26.0]
[1757341448861,0.06,213.87,213.86,63.1]
[1757341450183,0.06,213.87,213.86,63.82]
[1757341450677,0.06,213.87,213.86,68.49595623]
[1757341451977,0.06,213.87,213.86,67.77595623]
[1757341452895,0.06,213.87,213.86,68.49595623]
[1757341453079,0.06,213.87,213.86,67.77595623]
[1757341453563,0.06,213.87,213.86,68.49595623]
[1757341453769,0.06,213.87,213.86,67.77595623]
[1757341453968,0.06,213.87,213.86,63.1]
[1757341454169,0.06,213.87,213.86,67.77595623]
[1757341454800,0.06,213.87,213.86,63.1]
[1757341455979,0.06,213.87,213.85,26.0]
[1757341456168,0.06,213.87,213.86,37.1]
[1757341456584,0.06,213.87,213.8,11.6927173]
[1757341456585,0.71,213.87,213.81,26.0]
[1757341456763,0.71,213.87,213.85,26.0]
[1757341457091,0.71,213.87,213.86,37.1]
[1757341457288,0.06,213.87,213.86,37.1]
[1757341457891,0.71,213.87,213.86,37.1]
[1757341458073,5.38573759,213.87,213.86,37.1]
[1757341460292,8.29252625,213.87,213.86,37.1]
[1757341460526,11.77636875,213.87,213.86,37.1]
[1757341460791,5.38573759,213.87,213.86,37.1]
[1757341462283,8.87372695,213.87,213.86,37.1]
[1757341463198,5.38573759,213.87,213.86,37.1]
[1757341463400,8.87619262,213.87,213.86,37.1]
[1757341464499,5.38573759,213.87,213.86,37.1]
[1757341464701,8.87641083,213.87,213.86,37.1]
[1757341466323,5.38573759,213.87,213.86,37.1]
[1757341468619,25.38029367,213.87,213.86,37.1]
[1757341468834,25.38029367,213.87,213.86,37.08]
[1757341468835,37.06963766,213.87,213.86,37.08]
[1757341469012,13.59559401,213.86,213.76,33.66]
[1757341469316,2.90678866,213.84,213.79,26.0]
[1757341469518,76.45678866,213.85,213.79,26.0]
[1757341469706,4.14266613,213.84,213.79,26.0]
[1757341469905,0.65,213.83,213.79,26.0]
[1757341470105,0.65,213.82,213.8,37.08]
[1757341470305,75.80678866,213.85,213.8,37.08]
[1757341470306,0.65,213.81,213.8,37.08]
[1757341470501,5.32704971,213.81,213.8,37.08]
[1757341472126,4.67704971,213.81,213.8,37.08]
[1757341472624,0.65,213.84,213.8,37.08]
[1757341472825,4.67661226,213.83,213.8,37.08]
[1757341473031,5.32661226,213.83,213.8,37.08]
[1757341473533,4.67661226,213.83,213.8,37.08]
[1757341473720,0.65,213.82,213.8,37.08]
[1757341474028,4.67661226,213.83,213.8,37.08]
[1757341474326,0.65,213.82,213.8,37.08]
[1757341474536,16.36814291,213.83,213.8,37.08]
[1757341474537,0.65,213.81,213.8,37.08]
[1757341474712,5.32704971,213.81,213.8,37.08]
[1757341474908,4.67704971,213.81,213.8,37.08]
[1757341476138,72.9,213.85,213.8,37.08]
[1757341476139,4.67639356,213.84,213.8,37.75]
[1757341476437,0.66,213.83,213.82,26.0]
[1757341476728,4.67639356,213.84,213.82,26.0]
[1757341476918,5.33639356,213.84,213.83,37.08]
[1757341477825,4.67639356,213.84,213.83,37.08]
[1757341478138,4.73639356,213.84,213.83,37.08]
[1757341478739,5.39639356,213.84,213.83,37.08]
[1757341479707,4.73639356,213.84,213.83,37.08]
[1757341479915,0.06,213.84,213.83,37.08]
[1757341480615,0.06,213.84,213.83,37.75]
[1757341481040,0.06,213.84,213.83,42.42661226]
[1757341482021,0.01135146,213.84,213.83,42.42661226]
[1757341482612,0.01135146,213.84,213.83,37.75]
[1757341482837,0.01135146,213.84,213.83,42.42661226]
[1757341484626,0.01135146,213.84,213.83,37.75]
[1757341485023,0.01135146,213.84,213.81,26.0]
[1757341485224,0.01135146,213.84,213.82,37.75]
[1757341485429,0.01135146,213.84,213.83,0.67]
[1757341486038,0.01135146,213.84,213.83,5.34661226]
[1757341486236,0.06,213.87,213.86,26.0]
[1757341486545,0.06,213.87,213.86,37.08]
[1757341486740,0.06,213.87,213.86,37.75]
[1757341487240,0.06,213.87,213.86,37.08]
[1757341491322,0.06,213.87,213.86,42.42595623]
[1757341492134,0.01116634,213.87,213.86,42.42595623]
[1757341493846,0.06,213.89,213.88,26.0]
[1757341494022,0.06,213.89,213.88,63.06]
[1757341494227,0.06,213.89,213.88,68.40551898]
[1757341495346,0.06,213.89,213.88,67.73551898]
[1757341495558,0.06,213.89,213.88,63.06]
[1757341496137,0.06,213.89,213.88,37.06]
[1757341499045,0.06,213.89,213.88,41.73551898]
[1757341499242,0.06,213.89,213.88,37.73]
[1757341499448,0.06,213.89,213.88,37.06]
[1757341500244,0.06,213.89,213.88,41.73551898]
[1757341501064,0.06,213.89,213.88,42.40551898]
[1757341501452,0.06,213.89,213.88,41.73551898]
[1757341503460,0.01117239,213.89,213.88,42.40551898]
[1757341504242,0.01117239,213.89,213.88,26.0]
[1757341504449,0.01117239,213.89,213.88,63.04]
[1757341505544,0.01117239,213.89,213.88,67.71551898]
[1757341505863,0.01117239,213.89,213.88,63.04]
[1757341506660,0.01117239,213.89,213.88,67.71551898]
[1757341508640,0.01117239,213.89,213.88,68.41551898]
[1757341509239,0.01117239,213.89,213.88,67.71551898]
[1757341510859,0.01117239,213.89,213.88,68.41551898]
[1757341511159,0.01117239,213.89,213.88,63.74]
[1757341511742,0.01117239,213.89,213.88,63.04]
[1757341511968,0.01117239,213.89,213.88,67.71551898]
[1757341513170,0.01117239,213.89,213.88,68.41551898]
[1757341513871,0.01117239,213.89,213.88,67.71551898]
[1757341514565,0.01117239,213.89,213.88,68.41551898]
[1757341515284,0.06,213.92,213.91,39.59559401]
[1757341515450,0.06,213.94,213.91,76.61559401]
[1757341515777,0.06,213.94,213.92,0.7]
[1757341515966,0.06,213.94,213.93,37.02]
[1757341516372,0.06,213.96,213.95,26.0]
[1757341516562,0.06,213.96,213.95,63.0]
[1757341516751,0.06,213.96,213.95,63.7]
[1757341517152,0.06,213.96,213.95,68.37398924]
[1757341517362,0.06,213.96,213.95,67.67398924]
[1757341518070,0.06,213.96,213.95,68.37398924]
[1757341518375,0.06,213.99,213.95,80.05896236]
[1757341518549,0.06,213.99,213.98,39.59559401]
[1757341518756,0.06,214.01,213.98,76.59559401]
[1757341518950,0.06,214.01,213.99,0.7]
[1757341519170,0.06,214.01,214.0,41.67289719]
[1757341519352,0.06,214.02,214.0,41.67289719]
[1757341520056,0.06,214.02,214.0,42.37289719]
[1757341520783,0.06,214.02,214.0,41.67289719]
[1757341521275,0.06,214.02,214.0,45.50387598]
[1757341521654,0.06,214.02,214.0,46.20387598]
[1757341522383,0.06,214.02,214.01,37.0]
[1757341523188,0.06,214.05,214.04,26.0]
[1757341523484,0.77,214.05,214.04,62.98]
[1757341524865,0.77,214.05,214.02,26.0]
[1757341525071,0.71,214.04,214.03,62.98]
[1757341525571,0.06,214.05,214.03,62.98]
[1757341525784,0.77,214.05,214.03,62.98]
[1757341526190,0.77,214.05,214.03,67.65220306]
[1757341527776,0.06,214.05,214.03,67.65220306]
[1757341528472,0.06,214.05,214.03,68.35220306]
[1757341528675,0.06,214.05,214.03,67.65220306]
[1757341529190,0.06,214.05,214.03,69.52027078]
[1757341529392,0.06,214.05,214.03,64.84806772]
[1757341530675,0.06,214.05,214.03,65.54806772]
[1757341530877,0.06,214.05,214.04,36.96]
[1757341532775,0.06,214.06,214.04,55.92761793]
[1757341533099,0.2,214.08,214.07,26.0]
[1757341533280,0.06,214.09,214.07,62.96]
[1757341533871,0.06,214.09,214.07,63.66]
[1757341534071,0.06,214.09,214.08,14.00723707]
[1757341534690,0.06,214.09,214.08,18.67838804]
[1757341534895,0.06,214.09,214.08,36.96]
[1757341535285,0.71,214.17,214.11,26.0]
[1757341535487,0.71,214.16,214.15,26.0]
[1757341535674,0.71,214.16,214.15,62.96]
[1757341536078,0.71,214.19,214.15,62.96]
[1757341536275,0.71,214.18,214.15,62.96]
[1757341536484,91.03722611,214.26,214.15,62.96]
[1757341536485,0.71,214.17,214.15,62.96]
[1757341536792,0.71,214.16,214.15,62.96]
[1757341537391,0.71,214.19,214.15,62.96]
[1757341537592,0.71,214.18,214.15,62.96]
[1757341537899,0.71,214.17,214.15,62.96]
[1757341539100,0.06,214.16,214.15,62.96]
[1757341541706,0.77,214.16,214.15,62.96]
[1757341542200,0.06,214.16,214.15,62.96]
[1757341542408,0.06,214.16,214.15,36.94]
[1757341543309,0.06,214.16,214.15,36.92]
[1757341545807,0.06,214.19,214.18,26.0]
[1757341546007,0.06,214.19,214.18,62.92]
[1757341547211,0.06,214.19,214.18,26.0]
[1757341547503,0.06,214.19,214.18,55.88456403]
[1757341547696,0.06,214.21,214.2,26.0]
[1757341548300,0.77,214.21,214.2,36.92]
[1757341548502,0.77,214.21,214.16,26.0]
[1757341548698,0.77,214.21,214.2,26.0]
[1757341548904,0.77,214.21,214.2,62.92]
[1757341549896,0.06,214.21,214.2,62.92]
[1757341550502,0.06,214.21,214.2,62.9]
[1757341551203,0.77,214.21,214.2,62.9]
[1757341551413,0.77,214.21,214.2,36.9]
[1757341551599,5.43831613,214.21,214.19,26.0]
[1757341551799,4.72831613,214.21,214.2,36.9]
[1757341552202,5.43831613,214.21,214.2,36.9]
[1757341552817,5.43831613,214.21,214.14,11.66814767]
[1757341552998,0.71,214.2,214.15,36.9]
[1757341553196,0.71,214.19,214.15,36.9]
[1757341553416,0.71,214.18,214.15,36.9]
[1757341553612,0.71,214.17,214.15,36.9]
[1757341553998,0.71,214.19,214.15,36.9]
[1757341554302,0.71,214.18,214.17,26.0]
[1757341554503,0.71,214.2,214.17,62.9]
[1757341554813,0.71,214.19,214.17,62.9]
[1757341555014,0.71,214.18,214.17,62.9]
[1757341555517,0.71,214.18,214.14,26.0]
[1757341555705,4.66897002,214.18,214.17,26.0]
[1757341555909,4.66897002,214.18,214.17,62.9]
[1757341556111,4.66897002,214.18,214.17,36.9]
[1757341556112,5.37897002,214.18,214.17,36.9]
[1757341556620,0.71,214.18,214.17,36.9]
[1757341557194,5.37897002,214.18,214.17,36.9]
[1757341557904,21.59302718,214.18,214.17,36.9]
[1757341559119,17.05139508,214.18,214.17,36.9]
[1757341560123,17.05139508,214.18,214.17,36.93]
[1757341561028,0.71,214.18,214.17,36.93]
[1757341561202,5.37897002,214.18,214.17,36.93]
[1757341561720,0.06,214.19,214.17,36.93]
[1757341561721,4.72893407,214.19,214.17,36.93]
[1757341561907,5.43893407,214.19,214.17,36.93]
[1757341562109,0.77,214.19,214.17,36.93]
[1757341562318,0.06,214.19,214.17,36.93]
[1757341562813,0.06,214.19,214.18,0.7]
[1757341563014,0.01108332,214.19,214.18,0.7]
[1757341563207,0.06,214.21,214.2,26.0]
[1757341563409,0.06,214.21,214.2,63.58]
[1757341566810,5.37700891,214.27,214.2,63.58]
[1757341567728,5.37700891,214.27,214.2,68.24851502]
[1757341568505,17.04453119,214.27,214.2,26.7]
[1757341568710,11.66752228,214.27,214.24,26.0]
[1757341568923,0.68,214.26,214.25,36.86]
[1757341569707,0.68,214.26,214.19,12.34657867]
[1757341569708,0.68,214.26,214.19,11.66657867]
[1757341570028,0.68,214.25,214.2,36.86]
[1757341570205,11.66752228,214.27,214.2,36.86]
[1757341570410,0.68,214.24,214.2,36.86]
[1757341570725,0.68,214.23,214.2,36.86]
[1757341571130,0.68,214.22,214.2,36.86]
[1757341572512,5.348142,214.22,214.2,36.86]
[1757341573025,5.348142,214.22,214.19,26.0]
[1757341573026,0.68,214.21,214.17,0.03]
[1757341573230,0.68,214.21,214.2,26.0]
[1757341573402,0.68,214.21,214.2,62.86]
[1757341573723,4.668142,214.22,214.2,62.86]
[1757341573923,0.68,214.21,214.2,62.86]
[1757341574107,4.668142,214.22,214.2,62.86]
[1757341574312,0.68,214.23,214.2,62.86]
[1757341574710,4.66744457,214.25,214.2,62.86]
[1757341574914,4.66744457,214.25,214.2,63.54]
[1757341575444,0.68,214.27,214.21,0.68]
[1757341575445,5.3472231,214.27,214.21,0.68]
[1757341575632,4.6672231,214.27,214.25,26.0]
[1757341575812,4.6672231,214.27,214.26,36.86]
[1757341576317,5.34677577,214.29,214.26,36.86]
[1757341576515,0.68,214.29,214.26,36.86]
[1757341576732,16.5322607,214.3,214.27,36.86]
[1757341576733,0.68,214.28,214.27,36.86]
[1757341576940,0.68,214.28,214.23,26.0]
[1757341577129,0.68,214.27,214.26,26.0]
[1757341577321,0.68,214.27,214.26,62.86]
[1757341577722,0.68,214.27,214.26,36.86]
[1757341578532,5.34700891,214.27,214.26,36.86]
[1757341581458,5.34700891,214.27,214.26,36.84]
[1757341581459,20.49655224,214.27,214.26,36.84]
[1757341582029,13.59559401,214.26,214.17,0.03]
[1757341582228,2.89692717,214.2,214.19,36.84]
[1757341582437,0.68,214.2,214.17,0.03]
[1757341582645,2.89692717,214.19,214.17,0.03]
[1757341582943,7.56589719,214.18,214.17,0.03]
[1757341583152,11.7295779,214.18,214.17,0.03]
[1757341583351,8.24589719,214.18,214.17,0.03]
[1757341583537,21.8414912,214.18,214.17,0.03]
[1757341583734,13.59559401,214.17,214.14,0.03]
[1757341583938,2.89692717,214.15,214.14,0.03]
[1757341584252,3.57692717,214.16,214.14,0.03]
[1757341584437,0.68,214.15,214.14,0.03]
[1757341584953,5.34962409,214.15,214.14,31.31]
[1757341585429,8.24655126,214.15,214.14,31.31]
[1757341585631,5.34962409,214.15,214.14,31.31]
[1757341585833,4.66962409,214.15,214.14,31.31]
[1757341586530,3.57692717,214.21,214.14,31.99]
[1757341586843,0.68,214.21,214.14,31.99]
[1757341587042,4.66853408,214.2,214.17,26.0]
[1757341587363,4.66853408,214.2,214.17,26.68]
[1757341587653,11.67001462,214.23,214.17,26.68]
[1757341588252,16.33789493,214.23,214.17,26.68]
[1757341589246,0.68,214.22,214.17,26.0]
[1757341589547,0.68,214.21,214.17,26.0]
[1757341590239,16.33789493,214.23,214.18,0.68]
[1757341590447,16.33789493,214.23,214.19,37.52]
[1757341590646,0.68,214.22,214.16,26.0]
[1757341590954,0.68,214.21,214.17,36.84]
[1757341591338,4.66853408,214.2,214.17,36.84]
[1757341591737,4.66853408,214.2,214.17,37.52]
[1757341592047,12.35001462,214.23,214.17,37.52]
[1757341592854,4.66809821,214.22,214.17,37.52]
[1757341593369,12.35001462,214.23,214.16,26.0]
[1757341593370,2.89692717,214.18,214.16,26.0]
[1757341593566,2.89692717,214.18,214.17,36.84]
[1757341593858,13.59559401,214.22,214.17,36.84]
[1757341594055,2.89692717,214.19,214.17,36.84]
[1757341594239,0.68,214.21,214.17,36.84]
[1757341594852,16.33789493,214.23,214.17,37.52]
[1757341595752,17.03789493,214.23,214.17,36.84]
[1757341596541,0.7,214.22,214.17,36.84]
[1757341596741,0.7,214.21,214.17,36.84]
[1757341596965,0.7,214.2,214.17,36.84]
[1757341597163,5.36788031,214.23,214.17,37.54]
[1757341597545,5.36788031,214.23,214.17,36.84]
[1757341598054,17.03758109,214.23,214.17,36.84]
[1757341598358,17.03758109,214.23,214.18,0.7]
[1757341598359,16.33758109,214.23,214.18,0.7]
[1757341598759,2.89692717,214.21,214.14,0.03]
[1757341599066,2.89692717,214.21,214.17,0.03]
[1757341599358,4.66875204,214.19,214.17,0.03]
[1757341600670,11.72995611,214.23,214.17,0.03]
[1757341600858,11.72995611,214.23,214.18,0.7]
[1757341601164,0.7,214.22,214.19,36.82]
[1757341601568,17.03834375,214.22,214.19,36.82]
[1757341601767,16.33834375,214.22,214.19,36.82]
[1757341602270,4.66809821,214.22,214.19,36.82]
[1757341602766,5.36809821,214.22,214.19,36.82]
[1757341602971,4.66809821,214.22,214.19,36.82]
[1757341603467,0.7,214.21,214.2,36.82]
[1757341603675,5.36831613,214.21,214.17,0.03]
[1757341603861,4.66831613,214.21,214.18,36.82]
[1757341604370,4.66813164,214.22,214.18,36.82]
[1757341604564,4.66813164,214.22,214.18,37.52]
[1757341605556,11.72981674,214.23,214.18,37.52]
[1757341606156,12.42981674,214.23,214.18,37.52]
[1757341606572,0.7,214.22,214.18,36.82]
[1757341606950,3.59692717,214.21,214.19,36.82]
[1757341607154,0.7,214.2,214.19,36.82]
[1757341607680,5.36853408,214.2,214.19,36.82]
[1757341609691,17.09769705,214.23,214.19,36.82]
[1757341609998,0.06,214.23,214.2,0.7]
[1757341610156,0.06,214.23,214.21,0.7]
[1757341610363,0.06,214.23,214.22,26.0]
[1757341610665,0.06,214.23,214.22,26.7]
[1757341613283,15.8386041,214.27,214.22,26.7]
[1757341613473,15.8386041,214.27,214.23,37.5]
[1757341613672,15.8386041,214.27,214.23,36.8]
[1757341613862,16.336056,214.25,214.24,36.8]
[1757341615494,17.036056,214.25,214.24,36.8]
[1757341615678,19.93298317,214.25,214.24,36.8]
[1757341616195,19.93298317,214.25,214.19,26.0]
[1757341616498,2.89692717,214.23,214.2,36.8]
[1757341617283,2.89692717,214.21,214.17,0.03]
[1757341617474,2.89692717,214.21,214.18,62.8]
[1757341618081,4.66853408,214.2,214.18,62.8]
[1757341620586,7.56521598,214.22,214.18,62.8]
[1757341620786,4.66828881,214.22,214.19,0.7]
[1757341621283,3.59692717,214.22,214.18,62.8]
[1757341621487,2.89692717,214.22,214.19,0.7]
[1757341621703,7.56481232,214.23,214.18,62.8]
[1757341621902,19.2345131,214.23,214.18,62.8]
[1757341622395,19.9345131,214.23,214.18,62.8]
[1757341622792,19.2345131,214.23,214.18,62.8]
[1757341622973,19.2345131,214.23,214.18,63.5]
[1757341623378,16.33758593,214.23,214.18,36.8]
[1757341623573,4.66788515,214.23,214.19,0.7]
[1757341623786,75.79692717,214.24,214.2,0.7]
[1757341623787,77.56769802,214.24,214.2,0.7]
[1757341623984,77.56769802,214.24,214.21,36.8]
[1757341625885,72.9,214.24,214.21,37.5]
[1757341626284,77.56773141,214.24,214.21,37.5]
[1757341626483,77.56773141,214.24,214.21,36.8]
[1757341626882,82.0966532,214.24,214.21,36.8]
[1757341627101,82.0966532,214.24,214.21,37.5]
[1757341627302,82.0966532,214.24,214.21,36.8]
[1757341627303,77.56773141,214.24,214.21,36.8]
[1757341627981,0.66,214.23,214.22,36.78]
[1757341628387,4.52892179,214.23,214.22,36.78]
[1757341628597,5.18892179,214.23,214.22,36.78]